bitfinex/quotes_ETHUSD_20220112
["timestamp","ask_amount","ask_price","bid_price","bid_amount"]
[1642022703070,5.318,3408.2,3407.0,0.0124307]
[1642022703256,5.618,3408.2,3407.0,0.00625266]
[1642022703657,5.618,3408.2,3407.1,0.01284131]
[1642022703854,5.618,3408.2,3407.0,0.00625266]
[1642022703855,5.61664348,3408.1,3407.0,0.00625266]
[1642022704055,5.61664348,3408.1,3407.2,0.00511581]
[1642022704056,5.318,3407.7,3407.2,0.00511581]
[1642022704260,5.318,3407.7,3406.7,9.169e-05]
[1642022704261,6.6,3407.5,3406.7,9.169e-05]
[1642022704555,5.618,3406.8,3404.8,5.25618012]
[1642022704757,5.318,3406.3,3404.8,5.25618012]
[1642022704959,1.23449669,3404.9,3404.8,5.25618012]
[1642022705158,0.425,3405.3,3404.8,5.25618012]
[1642022705360,0.425,3405.3,3404.8,11.38020562]
[1642022705559,0.425,3405.3,3404.9,26.071687]
[1642022705763,0.425,3405.3,3404.9,26.875653]
[1642022705962,0.425,3405.3,3405.0,0.00909478]
[1642022706160,0.425,3405.3,3405.1,0.01562563]
[1642022706408,0.425,3405.3,3405.0,0.00909478]
[1642022706409,0.425,3405.3,3405.0,11.02509478]
[1642022706610,0.425,3406.2,3405.2,7.03011293]
[1642022706810,0.425,3406.2,3405.1,5.92864183]
[1642022707009,5.78984739,3407.4,3405.3,0.0073895]
[1642022707010,0.425,3406.6,3405.3,0.0073895]
[1642022707211,0.425,3406.6,3405.4,0.1174]
[1642022707212,3.22052377,3406.5,3405.4,0.1174]
[1642022707411,1.17468935,3406.8,3405.9,0.01224939]
[1642022707615,0.88184732,3406.1,3405.9,0.01224939]
[1642022707816,0.88184732,3406.1,3406.0,0.12081054]
[1642022708010,1.17468935,3406.8,3406.0,0.00341054]
[1642022708412,0.00397896,3407.3,3405.6,0.00568423]
[1642022708611,0.00397896,3407.3,3406.4,1.20787802]
[1642022708811,0.00341054,3407.2,3406.5,0.425]
[1642022709015,1.2258,3408.4,3407.6,6.71516401]
[1642022709215,6.1342,3409.1,3407.1,0.01236863]
[1642022709415,6.1342,3409.1,3407.2,0.1173]
[1642022709416,1.0877284,3407.9,3407.2,0.1173]
[1642022709615,1.0877284,3407.9,3406.7,0.1173]
[1642022709815,1.49345438,3407.4,3406.7,0.1173]
[1642022710086,1.49345438,3407.4,3406.0,0.00286383]
[1642022710276,0.00341054,3407.8,3406.0,0.00286383]
[1642022710577,1.09764519,3407.1,3406.1,0.14217894]
[1642022710774,1.09764519,3407.1,3406.1,0.12137897]
[1642022710976,1.09764519,3407.1,3405.6,0.13819997]
[1642022710977,6.6,3406.9,3405.6,0.13819997]
[1642022711175,6.6,3406.9,3405.4,0.1174]
[1642022711176,0.425,3406.8,3405.4,0.1174]
[1642022711374,0.425,3406.8,3404.8,3.01051146]
[1642022711375,0.01429009,3406.7,3405.7,0.00284212]
[1642022711578,1.20265532,3405.8,3405.7,0.00284212]
[1642022711775,1.20265532,3405.8,3405.4,0.00454739]
[1642022711974,1.20265532,3405.8,3405.1,0.12365266]
[1642022712175,1.20265532,3405.8,3405.2,0.00568424]
[1642022712877,0.00227369,3406.6,3405.3,3.95]
[1642022713075,0.00227369,3406.6,3405.4,0.01341226]
[1642022713275,0.00170527,3406.5,3405.4,0.01795965]
[1642022713474,1.54787957,3406.3,3405.5,0.00397897]
[1642022713675,0.00696629,3406.2,3405.5,0.00397897]
[1642022713913,1.54787957,3406.3,3405.2,0.00568424]
[1642022714117,3.01051146,3406.2,3405.2,0.00568424]
[1642022714323,6.6,3406.0,3405.1,0.00404349]
[1642022714519,1.15325662,3404.6,3404.0,1.0104563]
[1642022714714,1.21447293,3405.8,3404.0,1.0104563]
[1642022714715,0.9317,3405.0,3404.0,1.0104563]
[1642022714916,0.9317,3405.0,3404.1,0.00625266]
[1642022715116,3.37285152,3404.9,3404.1,0.00625266]
[1642022715316,0.352,3405.4,3404.1,0.00625266]
[1642022715921,0.352,3405.4,3403.2,0.1174]
[1642022715922,0.00929415,3404.3,3403.2,0.1174]
[1642022716117,0.352,3405.0,3402.7,0.1174]
[1642022716318,0.352,3405.0,3403.4,0.03077005]
[1642022716517,0.00454739,3404.9,3403.3,0.00454738]
[1642022716823,1.31183124,3404.6,3403.5,0.05862225]
[1642022717017,0.00397897,3404.8,3404.1,0.01205973]
[1642022717218,3.0108662,3405.8,3404.1,0.01205973]
[1642022717219,0.0022737,3404.5,3404.1,0.01205973]
[1642022717426,0.00341054,3404.7,3404.2,0.1174]
[1642022717686,3.0108662,3405.8,3403.7,0.1174]
[1642022717687,0.00170527,3404.4,3403.7,0.1174]
[1642022717978,0.00113685,3404.3,3403.8,0.00170527]
[1642022718280,1.45163462,3404.4,3403.8,0.00170527]
[1642022718476,3.0108662,3405.8,3403.8,0.00170527]
[1642022718679,0.00795793,3405.7,3403.7,0.00341054]
[1642022718878,0.352,3405.8,3403.8,0.1174]
[1642022719080,0.352,3405.8,3403.9,0.03335361]
[1642022719081,0.652,3405.8,3403.9,0.03335361]
[1642022719279,0.652,3405.8,3404.2,1.12251449]
[1642022719480,3.43677501,3405.8,3404.0,0.0096632]
[1642022719678,3.43677501,3405.8,3404.3,0.00795793]
[1642022719877,3.43677501,3405.8,3403.6,0.01193689]
[1642022720086,1.40974235,3405.8,3404.2,0.01231563]
[1642022720282,3.02152314,3405.9,3404.4,0.03291578]
[1642022720483,1.4931,3406.6,3404.4,3.3059287]
[1642022720685,1.41545327,3405.2,3404.5,0.12422108]
[1642022720888,1.31545327,3405.2,3404.5,0.12422108]
[1642022721084,1.31545327,3405.2,3404.6,0.00625266]
[1642022721512,1.31545327,3405.2,3404.4,0.00738951]
[1642022721713,1.26545327,3405.2,3404.3,0.00795793]
[1642022722012,1.37150411,3404.5,3403.9,0.01023162]
[1642022722621,1.37150411,3404.5,3403.6,0.01193689]
[1642022722815,1.37150411,3404.5,3403.5,0.01250532]
[1642022723015,5.36e-06,3403.7,3403.4,0.01307374]
[1642022723316,1.37150411,3404.5,3403.4,0.01307374]
[1642022723518,0.352,3405.0,3403.4,0.01307374]
[1642022723519,1.54139915,3403.5,3403.4,0.01307374]
[1642022724416,1.41641107,3404.8,3403.4,0.01307374]
[1642022724621,1.71641107,3404.8,3403.4,0.01307374]
[1642022724818,0.352,3404.7,3403.4,0.01307374]
[1642022725059,0.652,3404.7,3403.4,0.01307374]
[1642022725263,1.48963143,3403.9,3403.4,0.01307374]
[1642022725464,1.32176616,3403.8,3403.4,0.01307374]
[1642022726863,1.10178537,3404.5,3403.4,0.01307374]
[1642022727062,1.40178537,3404.5,3403.4,0.01307374]
[1642022727263,1.40178537,3404.5,3404.1,1.78]
[1642022727463,3.3532841,3404.4,3404.1,1.78]
[1642022727662,1.40178537,3404.5,3404.2,0.00852635]
[1642022727864,1.10178537,3404.5,3404.2,0.00852635]
[1642022728065,0.88230623,3404.3,3404.2,0.00852635]
[1642022728263,1.10178537,3404.5,3404.2,0.00852635]
[1642022728668,6.6,3404.4,3403.4,0.1174]
[1642022728919,0.36483837,3404.3,3403.4,0.1174]
[1642022729119,0.352,3404.3,3403.5,0.00397897]
[1642022729519,1.30957977,3403.6,3403.5,0.00397897]
[1642022732664,1.30957977,3403.6,3403.4,0.00454739]
[1642022733466,1.30957977,3403.6,3402.9,0.00738951]
[1642022734266,1.33323396,3403.4,3402.9,0.00738951]
[1642022734465,1.33323396,3403.4,3402.7,1.47880748]
[1642022734466,1.33323396,3403.4,3402.8,0.00795793]
[1642022734668,0.352,3404.3,3402.8,0.00795793]
[1642022734868,3.35462049,3404.2,3402.8,0.00795793]
[1642022735067,0.00113684,3404.4,3402.8,0.00795793]
[1642022735269,0.35313684,3404.4,3402.8,0.00795793]
[1642022735667,1.5286431,3403.5,3402.8,1.38499423]
[1642022735867,0.352,3404.4,3402.8,1.38499423]
[1642022736070,0.652,3404.4,3402.9,0.00852635]
[1642022736717,0.88232808,3404.2,3402.9,0.00852635]
[1642022736918,1.1844749,3403.5,3402.9,0.00852635]
[1642022737320,0.01213191,3403.4,3402.7,0.00966319]
[1642022737523,1.1844749,3403.5,3402.7,0.13951397]
[1642022737919,1.1844749,3403.5,3402.8,0.02210026]
[1642022738120,1.1844749,3403.5,3403.0,1.32956124]
[1642022738319,1.1844749,3403.5,3403.1,0.1174]
[1642022738519,1.1844749,3403.5,3403.1,0.0073895]
[1642022738720,4.8924,3404.3,3403.2,0.00682108]
[1642022738921,0.352,3404.8,3402.8,1.47795067]
[1642022739123,0.352,3404.8,3402.9,3.01903865]
[1642022739321,0.88390279,3404.7,3402.9,3.01903865]
[1642022739524,0.88390279,3404.7,3404.0,1.48341698]
[1642022739722,0.00113685,3404.6,3404.1,3.0105123]
[1642022739923,0.00113685,3404.6,3404.1,0.00170527]
[1642022740169,0.00113685,3404.6,3404.2,0.00113684]
[1642022740368,0.00113685,3404.6,3404.1,0.00170527]
[1642022740569,0.00113685,3404.6,3403.7,0.00397896]
[1642022740869,0.00113685,3404.6,3402.9,3.0105123]
[1642022740870,0.00113685,3404.6,3403.2,1.47880748]
[1642022741070,1.17958081,3403.4,3403.3,3.0105123]
[1642022741271,1.17958081,3403.4,3403.3,0.00625265]
[1642022741671,0.00113685,3404.6,3403.3,0.00625265]
[1642022742368,0.00113685,3404.6,3403.3,2.7406437]
[1642022742569,0.00113685,3404.6,3403.5,1.28864662]
[1642022742772,0.00113685,3404.6,3403.6,2.66821353]
[1642022742969,0.00113685,3404.6,3403.6,0.73892338]
[1642022743171,0.00113685,3404.6,3403.4,0.12972063]
[1642022743172,0.00113685,3404.6,3403.7,0.00397896]
[1642022743572,0.00113685,3404.6,3403.5,0.00511581]
[1642022744015,0.352,3404.5,3403.5,0.00511581]
[1642022744217,1.87103523,3404.4,3403.2,0.00682108]
[1642022744516,1.25278609,3403.3,3403.2,3.01733338]
[1642022744714,1.25278609,3403.3,3403.2,1.48562856]
[1642022745119,0.352,3404.4,3403.2,1.48562856]
[1642022745320,0.352,3404.4,3403.3,3.0105123]
[1642022745520,1.46933,3404.2,3403.3,0.00625265]
[1642022745723,1.46933,3404.2,3403.4,0.00568423]
[1642022745920,1.46933,3404.2,3403.3,0.00625265]
[1642022746121,1.27228848,3403.5,3403.4,0.00568423]
[1642022746322,1.27228848,3403.5,3403.3,0.00625265]
[1642022746921,0.352,3404.4,3403.3,0.00625265]
[1642022747124,0.352,3404.4,3403.3,2.63118846]
[1642022747573,0.352,3404.4,3403.4,0.00568423]
[1642022747774,0.352,3404.4,3403.5,0.1174]
[1642022748175,0.352,3404.4,3403.6,0.00454738]
[1642022748375,1.37447429,3403.7,3403.6,0.00454738]
[1642022748773,1.37447429,3403.7,3403.5,0.00511581]
[1642022748974,0.00113685,3404.6,3403.5,2.60476103]
[1642022749277,0.00113685,3404.6,3403.6,2.70265216]
[1642022749474,0.00113685,3404.6,3403.6,0.00454738]
[1642022749676,0.00113685,3404.6,3403.7,0.00397896]
[1642022749875,0.00113685,3404.6,3403.6,2.521489]
[1642022750075,1.4158072,3403.7,3403.6,2.521489]
[1642022750479,0.00113685,3404.6,3403.6,3.43823702]
[1642022750683,0.00113685,3404.6,3403.6,2.70378622]
[1642022750881,0.00113685,3404.6,3403.7,0.00397896]
[1642022751521,0.00113685,3404.6,3403.7,2.52546796]
[1642022751819,0.00113685,3404.6,3403.8,0.00341054]
[1642022752017,0.00113685,3404.6,3403.8,2.68515122]
[1642022752018,1.15237302,3404.1,3403.8,2.68515122]
[1642022752217,1.15237302,3404.1,3403.8,2.64449784]
[1642022752518,1.15237302,3404.1,3403.9,0.00284211]
[1642022752721,0.00113685,3404.6,3403.9,0.00284211]
[1642022753118,0.00113685,3404.6,3403.9,2.61747075]
[1642022753319,0.00113685,3404.6,3404.0,0.7343782]
[1642022753520,0.00113685,3404.6,3404.1,6.46763136]
[1642022753718,0.00113685,3404.6,3404.3,0.01885467]
[1642022753921,0.00113685,3404.6,3404.4,0.1174]
[1642022754325,0.00113685,3404.6,3404.4,1.5856613]
[1642022754523,0.00113685,3404.6,3404.4,0.1174]
[1642022755978,0.00113685,3404.6,3404.5,2.521489]
[1642022756177,7.0747,3406.1,3404.6,6.6]
[1642022756376,7.0747,3406.1,3404.7,3.0105123]
[1642022756576,0.00284212,3405.1,3404.8,1.1467544]
[1642022756775,0.00284212,3405.1,3404.6,1.43874]
[1642022756978,0.00227369,3405.0,3404.6,1.43874]
[1642022757175,0.00227369,3405.0,3404.8,1.4682224]
[1642022757377,0.00170527,3404.9,3404.8,2.2022924]
[1642022757578,0.00170527,3404.9,3404.8,5.3103594]
[1642022758076,0.00170527,3404.9,3404.8,4.5762894]
[1642022758276,0.00170527,3404.9,3404.8,1.4682224]
[1642022758480,0.00170527,3404.9,3404.8,3.3105123]
[1642022758680,0.00170527,3404.9,3404.8,3.4279123]
[1642022758912,0.00170527,3404.9,3404.8,10.4279123]
[1642022759114,0.00170527,3404.9,3404.8,4.7279123]
[1642022759513,0.00170527,3404.9,3404.8,6.22574863]
[1642022759710,0.00170527,3404.9,3404.8,6.95975863]
[1642022760117,0.00170527,3404.9,3404.8,5.1619223]
[1642022760314,0.00170527,3404.9,3404.8,5.4619223]
[1642022760713,5.27e-06,3404.9,3404.8,5.4619223]
[1642022760920,0.88165348,3406.8,3405.6,0.58709]
[1642022761124,3.71420255,3408.7,3406.0,0.7338]
[1642022761320,0.01023162,3406.7,3406.1,3.0105123]
[1642022761518,0.01023162,3406.7,3406.1,0.3]
[1642022761720,0.0096632,3406.6,3406.2,1.0]
[1642022761918,0.0096632,3406.6,3406.0,0.3]
[1642022762126,1.3623876,3406.9,3405.7,0.27639994]
[1642022762127,0.00909478,3406.5,3405.7,0.27639994]
[1642022762319,0.00909478,3406.5,3405.6,0.1174]
[1642022762564,0.00852635,3406.4,3405.1,3.1279123]
[1642022762764,0.00852635,3406.4,3405.1,3.0105123]
[1642022762965,0.00795793,3406.3,3405.1,3.0105123]
[1642022763170,1.1671602,3405.8,3405.1,3.0105123]
[1642022763371,1.1671602,3405.8,3405.3,0.7340963]
[1642022763572,12.90937,3407.1,3405.4,3.3169548]
[1642022763573,0.00454739,3405.7,3405.4,3.3169548]
[1642022763772,0.00454739,3405.7,3405.5,0.02278207]
[1642022763970,6.6289,3407.1,3405.6,6.7174]
[1642022764171,6.6289,3407.1,3405.7,3.0105123]
[1642022764369,0.01193689,3407.0,3406.2,0.7337694]
[1642022764672,1.14209955,3406.8,3406.3,0.3]
[1642022764869,1.14209955,3406.8,3406.2,0.3]
[1642022765068,0.01023162,3406.7,3406.2,0.3]
[1642022765272,0.01023162,3406.7,3406.3,1.46746]
[1642022765472,0.0096632,3406.6,3406.3,1.46746]
[1642022765670,0.0096632,3406.6,3406.5,0.7338308]
[1642022765873,6.6289,3407.1,3406.5,0.7338308]
[1642022766071,8.651,3407.6,3406.6,0.02792053]
[1642022766317,0.01193689,3407.0,3406.6,2.64526968]
[1642022766510,0.01193689,3407.0,3406.4,2.84233118]
[1642022766711,0.01136847,3406.9,3406.4,2.84233118]
[1642022766912,0.01136847,3406.9,3406.5,1.3]
[1642022767111,0.01080005,3406.8,3406.5,1.3]
[1642022767414,17.5149,3408.1,3406.7,0.7337647]
[1642022767612,8.5476,3408.6,3406.8,3.20083372]
[1642022767817,0.01307374,3407.2,3406.8,3.36350513]
[1642022768020,3.7756,3408.9,3407.0,0.01243118]
[1642022768219,3.7756,3408.9,3407.9,0.7333537]
[1642022768415,0.00738951,3408.5,3407.8,1.4667074]
[1642022768618,0.00738951,3408.5,3407.9,0.73335]
[1642022768818,0.00682108,3408.4,3408.0,0.03214256]
[1642022769015,1.30954246,3408.8,3407.9,1.4667]
[1642022769016,1.30954246,3408.8,3408.1,0.3]
[1642022769017,1.21636354,3408.8,3408.1,0.3]
[1642022769215,0.00625266,3408.3,3408.1,0.30170527]
[1642022769417,0.00625266,3408.3,3408.2,0.00113684]
[1642022769621,0.352,3410.7,3408.4,0.75946247]
[1642022769820,0.352,3410.7,3408.8,1.4664117]
[1642022769821,4.7912,3410.5,3408.8,1.4664117]
[1642022770073,4.7912,3410.5,3408.9,3.0042913]
[1642022770074,0.00113685,3409.7,3408.9,3.0042913]
[1642022770271,0.00113685,3409.7,3408.9,3.30770184]
[1642022770472,1.38561843,3409.5,3409.0,0.00284212]
[1642022771077,0.01792482,3409.4,3409.0,0.00284212]
[1642022771275,0.01792482,3409.4,3408.0,0.00852635]
[1642022771576,1.50543079,3408.4,3407.9,0.00909477]
[1642022771774,0.00113685,3409.7,3407.9,0.12639477]
[1642022771974,0.00113685,3409.7,3408.1,1.7600759]
[1642022772174,0.00113685,3409.7,3408.2,0.1173]
[1642022772374,0.00113685,3409.7,3408.2,0.3073895]
[1642022772579,0.00113685,3409.7,3408.3,0.00682108]
[1642022772778,1.1265516,3409.4,3408.3,0.00682108]
[1642022772978,1.37388019,3409.3,3408.3,0.00682108]
[1642022773476,0.02057687,3409.1,3407.5,0.01136847]
[1642022773677,0.02057687,3409.1,3407.8,0.733492]
[1642022773917,1.54739161,3408.0,3407.8,0.733492]
[1642022774116,1.54739161,3408.0,3407.9,4.47587757]
[1642022774318,7.0569,3409.2,3407.9,1.47587757]
[1642022774717,7.0569,3409.2,3407.6,0.1173]
[1642022774718,7.0569,3409.2,3408.0,0.00852635]
[1642022774918,0.352,3409.1,3408.0,0.00852635]
[1642022775125,0.73357,3409.0,3407.7,0.01023162]
[1642022775320,0.352,3408.9,3407.7,0.01023162]
[1642022775725,1.35851677,3408.7,3407.7,0.01023162]
[1642022776120,1.2661139,3407.8,3407.7,0.01023162]
[1642022776321,7.0569,3409.2,3407.7,0.01023162]
[1642022776521,7.0569,3409.2,3408.0,1.4667492]
[1642022776820,7.0569,3409.2,3408.1,0.00795793]
[1642022777221,1.15821836,3409.1,3408.1,0.00795793]
[1642022777422,1.15821836,3409.1,3407.6,0.1173]
[1642022777423,1.16223659,3407.9,3407.7,0.01023162]
[1642022777665,1.16223659,3407.9,3407.8,2.9173]
[1642022778064,1.16223659,3407.9,3407.8,0.1269632]
[1642022778263,1.16223659,3407.9,3407.8,0.0096632]
[1642022778664,1.16223659,3407.9,3407.5,0.01136847]
[1642022778865,8.41929271,3409.2,3407.7,0.01023162]
[1642022778866,7.0569,3409.2,3407.7,0.01023162]
[1642022779070,7.0569,3409.2,3407.5,0.01136847]
[1642022779468,10.6558501,3409.2,3407.6,1.4668852]
[1642022779664,10.74094329,3409.2,3407.5,0.01136847]
[1642022779863,1.25468436,3409.0,3407.7,0.01023162]
[1642022780064,1.25468436,3409.0,3407.5,0.01136847]
[1642022780271,4.97758441,3409.0,3407.5,0.01136847]
[1642022780471,0.7336,3408.8,3407.5,0.01136847]
[1642022780671,4.37867473,3408.7,3407.5,0.01136847]
[1642022780869,0.352,3408.6,3407.5,0.01136847]
[1642022781070,1.15590155,3408.2,3406.9,0.01477901]
[1642022781319,1.39245746,3408.1,3407.0,0.1173]
[1642022781715,1.39245746,3408.1,3407.1,0.01364216]
[1642022781914,1.39245746,3408.1,3407.1,0.74727816]
[1642022782313,1.39245746,3408.1,3407.2,0.01307374]
[1642022782714,1.39245746,3408.1,3406.9,0.01477901]
[1642022782921,1.39245746,3408.1,3407.0,0.1173]
[1642022783321,1.39245746,3408.1,3407.1,0.01364216]
[1642022783922,1.39245746,3408.1,3407.0,0.01421059]
[1642022784224,1.39245746,3408.1,3407.0,0.32177329]
[1642022784418,1.39245746,3408.1,3407.1,2.99810038]
[1642022784619,1.39245746,3408.1,3407.2,0.01286526]
[1642022784819,1.39245746,3408.1,3407.2,0.01307374]
[1642022785063,1.39245746,3408.1,3407.3,0.01250532]
[1642022785268,1.39245746,3408.1,3407.2,0.01307374]
[1642022785471,1.19106863,3407.3,3407.2,0.01307374]
[1642022785969,1.19106863,3407.3,3407.1,0.01364216]
[1642022788673,1.19106863,3407.3,3407.1,0.74718936]
[1642022788914,1.19106863,3407.3,3407.1,0.01364216]
[1642022789112,1.19106863,3407.3,3407.2,0.01307374]
[1642022789313,1.19106863,3407.3,3407.1,0.01364216]
[1642022789913,1.19106863,3407.3,3407.1,3.75129448]
[1642022790118,1.19106863,3407.3,3407.2,9.02934037]
[1642022790318,1.19106863,3407.3,3407.2,4.04241411]
[1642022790822,5.161,3408.5,3407.2,4.34241411]
[1642022791018,3.8881,3408.6,3407.3,1.3]
[1642022791322,3.8881,3408.6,3407.5,0.7335545]
[1642022791520,4.6936,3408.9,3407.6,3.14217727]
[1642022791719,4.6936,3408.9,3407.6,0.01080005]
[1642022791720,1.23240662,3408.7,3407.6,0.01080005]
[1642022791919,1.23240662,3408.7,3407.7,0.01023162]
[1642022792119,1.23240662,3408.7,3407.1,2.99810038]
[1642022792120,1.23240662,3408.7,3407.5,0.01136847]
[1642022792319,1.23240662,3408.7,3407.2,3.01117412]
[1642022792567,1.32190535,3407.3,3407.2,0.01307374]
[1642022792768,1.32190535,3407.3,3406.9,4.73164038]
[1642022792969,1.32190535,3407.3,3407.0,0.01421059]
[1642022793172,1.32190535,3407.3,3407.2,1.4670935]
[1642022793567,1.32190535,3407.3,3407.2,2.48016724]
[1642022793969,1.32190535,3407.3,3407.2,5.21281081]
[1642022794170,1.32190535,3407.3,3407.2,1.48016724]
[1642022794370,1.32190535,3407.3,3407.2,2.48016724]
[1642022795574,1.32190535,3407.3,3407.2,5.13238325]
[1642022796175,2.10558945,3408.6,3407.2,5.13238325]
[1642022796409,2.10558945,3408.6,3407.3,0.02431423]
[1642022796609,2.10558945,3408.6,3407.3,0.03681955]
[1642022796814,2.10558945,3408.6,3407.4,0.01193689]
[1642022797318,2.10558945,3408.6,3407.2,2.4670935]
[1642022797319,2.10558945,3408.6,3407.3,0.01250532]
[1642022797913,1.20212289,3408.5,3407.3,0.01250532]
[1642022798116,0.73376,3407.8,3407.3,0.01250532]
[1642022798321,1.46755,3408.1,3407.3,0.01250532]
[1642022798514,3.9601,3408.4,3407.3,0.01250532]
[1642022798717,3.9601,3408.4,3406.6,0.01648428]
[1642022799114,1.4086131,3407.0,3406.6,0.38334428]
[1642022799315,0.00325335,3406.9,3406.6,0.38334428]
[1642022799513,0.00325335,3406.9,3406.7,0.01591586]
[1642022799714,1.4086131,3407.0,3406.8,0.7337347]
[1642022800166,1.4086131,3407.0,3406.9,0.01477901]
[1642022803473,1.4086131,3407.0,3406.8,0.01534743]
[1642022804315,1.4086131,3407.0,3406.9,2.51909512]
[1642022804716,1.4086131,3407.0,3406.9,2.53387413]
[1642022805315,6.6999,3407.8,3406.9,2.61477901]
[1642022805517,3.6081,3408.4,3407.3,0.7335149]
[1642022805718,0.352,3409.6,3407.4,2.99810038]
[1642022805719,0.88118666,3408.6,3407.4,2.99810038]
[1642022805919,0.88118666,3408.6,3407.4,0.01193689]
[1642022806120,8.45772176,3408.8,3407.5,0.01136847]
[1642022806318,8.45772176,3408.8,3407.5,3.29810038]
[1642022806520,1.11440515,3407.9,3407.5,3.30946885]
[1642022806718,1.11440515,3407.9,3407.6,1.01080005]
[1642022806919,1.11440515,3407.9,3407.7,1.4669401]
[1642022807120,1.11440515,3407.9,3407.7,1.47717172]
[1642022807319,1.11440515,3407.9,3407.8,3.7096632]
[1642022807558,1.11440515,3407.9,3407.8,0.0096632]
[1642022807759,1.11440515,3407.9,3407.8,2.75206392]
[1642022808359,1.06440515,3407.9,3407.8,0.0096632]
[1642022809959,1.06440515,3407.9,3407.6,0.31080005]
[1642022810363,1.06440515,3407.9,3407.7,0.01023162]
[1642022810966,1.06440515,3407.9,3407.6,0.01080005]
[1642022811166,1.06440515,3407.9,3407.4,0.37872689]
[1642022811434,1.06440515,3407.9,3407.5,0.01136847]
[1642022811819,1.06440515,3407.9,3407.4,0.74555619]
[1642022812020,1.06440515,3407.9,3407.5,0.3]
[1642022812220,1.06440515,3407.9,3407.5,0.31136847]
[1642022812421,1.06440515,3407.9,3407.6,0.01080005]
[1642022814523,1.06440515,3407.9,3407.6,0.74435175]
[1642022814923,1.06440515,3407.9,3407.7,0.01023162]
[1642022815185,5.8812,3408.9,3407.7,0.01023162]
[1642022815385,5.8812,3408.9,3407.8,0.36674]
[1642022815785,5.8812,3408.9,3408.1,0.7334924]
[1642022815986,1.40535669,3408.3,3408.1,0.7334924]
[1642022816190,1.40535669,3408.3,3408.2,0.02279397]
[1642022816386,1.40535669,3408.3,3408.2,0.0073895]
[1642022818187,1.40535669,3408.3,3407.5,1.4173]
[1642022818188,1.40535669,3408.3,3407.9,0.00909477]
[1642022818589,1.40535669,3408.3,3407.8,0.0096632]
[1642022818820,1.40535669,3408.3,3407.8,1.4766417]
[1642022819014,1.40535669,3408.3,3407.8,0.0096632]
[1642022819316,1.40535669,3408.3,3407.7,0.01023162]
[1642022819917,1.40535669,3408.3,3407.6,0.01080005]
[1642022820319,2.83673742,3408.3,3407.6,0.01080005]
[1642022821019,2.83673742,3408.3,3407.6,0.69438785]
[1642022821219,0.7336,3408.2,3407.6,0.01080005]
[1642022821421,3.60472742,3408.1,3407.7,0.01023162]
[1642022821619,4.59392742,3408.1,3407.4,0.01193689]
[1642022822219,0.73379,3408.0,3407.4,0.01193689]
[1642022822419,1.50881628,3407.7,3407.4,0.01193689]
[1642022822669,0.73379,3407.6,3407.4,0.01193689]
[1642022823670,1.10017024,3407.5,3407.4,0.01193689]
[1642022825777,1.45217024,3407.5,3407.4,0.01193689]
[1642022825976,1.75217024,3407.5,3407.4,0.01193689]
[1642022826178,0.73405,3407.2,3406.9,0.01477901]
[1642022826827,0.352,3407.1,3406.9,0.01477901]
[1642022827029,0.352,3407.0,3406.9,0.01477901]
[1642022827225,4.502,3407.0,3406.9,0.01477901]
[1642022827425,2.45,3406.9,3406.0,6.48596249]
[1642022827628,4.3443628,3406.9,3406.0,6.48596249]
[1642022827824,4.3443628,3406.9,3406.1,0.00454739]
[1642022828025,2.20244,3406.7,3406.1,0.00454739]
[1642022828228,0.352,3406.6,3405.4,0.1174]
[1642022828528,0.352,3406.6,3405.0,0.00674878]
[1642022828529,1.14675797,3406.4,3405.5,0.00341054]
[1642022828725,0.73422,3406.0,3405.5,0.00341054]
[1642022828925,0.73422,3406.0,3405.2,0.00511581]
[1642022829126,1.26122341,3405.4,3405.1,0.00568423]
[1642022829324,1.46843,3406.1,3405.1,0.00568423]
[1642022829532,0.35313685,3406.3,3405.2,0.1174]
[1642022829826,0.00113685,3406.3,3405.3,0.00454738]
[1642022830064,0.73408,3406.1,3405.3,0.00454738]
[1642022830474,0.73408,3406.1,3405.1,0.1174]
[1642022830475,1.3231766,3405.5,3405.2,0.00511581]
[1642022830672,0.02745875,3405.4,3405.2,0.00511581]
[1642022831177,7.0888,3406.0,3405.2,0.00511581]
[1642022831571,0.352,3407.1,3405.2,0.37211581]
[1642022831776,4.16818,3407.6,3404.2,5.256798]
[1642022831779,0.01233627,3405.5,3404.2,5.256798]
[1642022831974,0.352,3405.4,3404.3,2.470502]
[1642022832177,0.00113685,3405.4,3404.6,0.7341845]
[1642022832374,0.00113685,3405.4,3404.7,0.1174]
[1642022832571,0.00113685,3405.4,3404.7,0.12024212]
[1642022832772,0.00113685,3405.4,3405.3,2.51992955]
[1642022832773,1.50666535,3405.4,3405.3,2.51992955]
[1642022833577,1.50666535,3405.4,3404.8,2.52220324]
[1642022833818,0.03270575,3405.3,3404.8,2.52220324]
[1642022834012,1.50666535,3405.4,3404.9,0.00170527]
[1642022835416,1.40666535,3405.4,3404.6,0.12081054]
[1642022835617,1.40666535,3405.4,3404.7,0.00397897]
[1642022835818,0.73429,3405.2,3404.7,0.00397897]
[1642022836219,1.40666535,3405.4,3404.7,0.00397897]
[1642022836421,6.7285,3405.9,3404.8,0.1174]
[1642022836622,6.7285,3405.9,3404.9,1.468089]
[1642022836824,0.00170527,3405.7,3405.1,0.7340671]
[1642022837018,0.00170527,3405.7,3405.2,0.1174]
[1642022837220,0.00113685,3405.6,3405.2,1.79294751]
[1642022837421,0.00113685,3405.6,3405.3,0.1174]
[1642022837663,0.88190939,3405.8,3405.3,0.1174]
[1642022837864,1.26608649,3406.2,3405.3,0.48438]
[1642022838064,1.26608649,3406.2,3405.3,1.1174]
[1642022838266,0.00397896,3406.1,3405.3,1.1174]
[1642022838769,0.00341054,3406.0,3405.3,1.1174]
[1642022838968,0.03054501,3405.9,3405.3,0.4174]
[1642022839168,0.73698212,3405.9,3405.2,0.00113685]
[1642022839369,0.00227369,3405.8,3405.2,0.00113685]
[1642022839569,0.00227369,3405.8,3405.1,0.00170527]
[1642022839771,1.19717115,3405.5,3405.1,0.00170527]
[1642022840177,0.01488012,3405.4,3405.1,0.00170527]
[1642022840376,0.01488012,3405.4,3404.7,0.00397897]
[1642022840573,0.01488012,3405.4,3404.4,3.77799052]
[1642022840574,0.73425,3405.4,3404.5,0.00511581]
[1642022841176,0.85165,3405.4,3404.5,0.00511581]
[1642022841420,1.40717769,3404.9,3404.3,0.00625266]
[1642022842622,0.02961166,3404.8,3404.3,0.00625266]
[1642022842817,1.40717769,3404.9,3404.3,0.00625266]
[1642022843220,1.40717769,3404.9,3403.7,0.0096632]
[1642022843420,0.1174,3404.8,3403.7,0.0096632]
[1642022843620,1.40717769,3404.9,3403.7,2.9924112]
[1642022843621,0.73441,3404.7,3403.7,2.9924112]